fUSD/lending_fUSD_20241019
["ID","MTS","AMOUNT","RATE_DAILY","PERIOD"]
[340503379,1729368642064,-500.0,0.00020493,2]
[340503380,1729368642074,-500.0,0.00020493,2]
[340503381,1729368642083,-500.0,0.00020493,2]
[340503382,1729368642093,-500.0,0.00020493,2]
[340503383,1729368642103,-500.0,0.00020493,2]
[340503384,1729368642113,-500.0,0.00020493,2]
[340503385,1729368642123,-173.36,0.00020548,2]
[340503386,1729368642132,-20237.68,0.00020548,2]
[340503387,1729368642141,-360.0,0.000206,2]
[340503388,1729368642151,-155.0,0.000206,2]
[340503389,1729368642160,-150.0,0.00020764,2]
[340503390,1729368642310,-1145.43142614,0.000209,2]
[340503391,1729368642321,-175.59,0.00021187,2]
[340503392,1729368642330,-150.0,0.00021197,2]
[340503393,1729368642340,-23303.39593228,0.00021398,2]
[340503394,1729368642350,-150.0,0.00021629,2]
[340503395,1729368642359,-9107.21924194,0.00021767,2]
[340503396,1729368642369,-375.0,0.00021917,2]
[340503397,1729368642378,-2500.0,0.00021917,2]
[340503398,1729368642388,-2500.0,0.00021917,2]
[340503399,1729368642397,-2500.0,0.00021917,2]
[340503400,1729368642406,-2500.0,0.00021917,2]
[340503401,1729368642415,-2500.0,0.00021917,2]
[340503402,1729368642426,-2500.0,0.00021917,2]
[340503403,1729368642436,-396.4,0.00021918,2]
[340503404,1729368642445,-575.45,0.00021995,2]
[340503405,1729368642455,-249.99999801,0.00022,2]
[340503406,1729368642464,-550.0,0.00022,2]
[340503407,1729368642474,-150.0,0.00022062,2]
[340503408,1729368642483,-1000.0,0.00022075,2]
[340503409,1729368642492,-150.0,0.000222,2]
[340503410,1729368642502,-161.89716126,0.00022266,2]
[340503411,1729368642511,-400.0,0.00022399,2]
[340503412,1729368642520,-400.0,0.00022399,2]
[340503413,1729368642530,-400.0,0.00022399,2]
[340503414,1729368642539,-400.0,0.00022399,2]
[340503415,1729368642548,-400.0,0.00022399,2]
[340503416,1729368642557,-150.0,0.00022494,2]
[340503417,1729368642567,-1145.43142614,0.000229,2]
[340503418,1729368642576,-150.0,0.00022927,2]
[340503419,1729368642585,-1000.0,0.00023,2]
[340503420,1729368642594,-174.0,0.00023,2]
[340503421,1729368642603,-200.0,0.00023,2]
[340503422,1729368642613,-265.45017474,0.0002301,2]
[340503423,1729368642622,-1000.0,0.000232,2]
[340503424,1729368642631,-563.53348865,0.0002322,2]
[340503425,1729368642640,-175.59,0.0002329,2]
[340503426,1729368642650,-400.0,0.00023299,2]
[340503427,1729368642659,-400.0,0.00023299,2]
[340503428,1729368642668,-400.0,0.00023299,2]
[340503429,1729368642678,-400.0,0.00023299,2]
[340503430,1729368642687,-3463.27876128,0.000233,2]
[340503431,1729368642696,-250.23550619,0.000233,2]
[340503432,1729368642705,-555.30458994,0.000233,2]
[340503433,1729368642715,-1409.0,0.000233,2]
[340503434,1729368642724,-182.0,0.000233,2]
[340503435,1729368642734,-251.16284061,0.000233,2]
[340503436,1729368642743,-556.59988361,0.000233,2]
[340503437,1729368642752,-9107.21924194,0.00023333,2]
[340503438,1729368642761,-150.0,0.0002336,2]
[340503439,1729368642771,-1245.0,0.000234,2]
[340503440,1729368642781,-150.0,0.00023792,2]
[340503441,1729368642791,-400.0,0.00023799,2]
[340503442,1729368642800,-400.0,0.00023799,2]
[340503443,1729368642809,-400.0,0.00023799,2]
[340503444,1729368642818,-539.57742686,0.00023799,2]
[340503445,1729368642828,-3056.953704,0.000238,2]
[340503446,1729368642837,-281.95,0.000239,2]
[340503447,1729368642846,-400.0,0.00023999,2]
[340503448,1729368642856,-400.0,0.00023999,2]
[340503449,1729368642865,-400.0,0.00023999,2]
[340503450,1729368642874,-250.0,0.00024,10]
[340503451,1729368642885,-1044.37090143,0.00024,2]
[340503452,1729368642894,-968.75948872,0.00024,2]
[340503453,1729368642904,-6627.58406576,0.00024,2]
[340503454,1729368642914,-1090.0,0.00024,6]
[340503455,1729368642923,-600.0,0.00024,2]
[340503456,1729368642935,-500.0,0.00024,2]
[340503457,1729368642943,-500.0,0.00024,2]
[340503458,1729368642953,-500.0,0.00024,2]
[340503459,1729368642962,-500.0,0.00024,2]
[340503460,1729368642971,-500.0,0.00024,2]
[340503461,1729368642980,-500.0,0.00024,2]
[340503462,1729368642990,-500.0,0.00024,2]
[340503463,1729368643000,-500.0,0.00024,2]
[340503464,1729368643009,-500.0,0.00024,2]
[340503465,1729368643019,-500.0,0.00024,2]
[340503466,1729368643029,-500.0,0.00024,2]
[340503467,1729368643039,-500.0,0.00024,2]
[340503468,1729368643050,-500.0,0.00024,2]
[340503469,1729368643059,-500.0,0.00024,2]
[340503470,1729368643069,-500.0,0.00024,2]
[340503471,1729368643078,-500.0,0.00024,2]
[340503472,1729368643087,-500.0,0.00024,2]
[340503473,1729368643096,-500.0,0.00024,2]
[340503474,1729368643106,-500.0,0.00024,2]
[340503475,1729368643115,-500.0,0.00024,2]
[340503476,1729368643124,-500.0,0.00024,2]
[340503477,1729368643134,-500.0,0.00024,2]
[340503478,1729368643143,-500.0,0.00024,2]
[340503479,1729368643152,-500.0,0.00024,2]
[340503480,1729368643162,-500.0,0.00024,2]
[340503481,1729368643172,-500.0,0.00024,2]
[340503482,1729368643182,-500.0,0.00024,2]
[340503483,1729368643192,-500.0,0.00024,2]
[340503484,1729368643201,-500.0,0.00024,2]
[340503485,1729368643211,-500.0,0.00024,2]
[340503486,1729368643220,-500.0,0.00024,2]
[340503487,1729368643230,-500.0,0.00024,2]
[340503488,1729368643240,-500.0,0.00024,2]
[340503489,1729368643250,-500.0,0.00024,2]
[340503490,1729368643259,-500.0,0.00024,2]
[340503491,1729368643269,-500.0,0.00024,2]
[340503492,1729368643279,-500.0,0.00024,2]
[340503493,1729368643288,-500.0,0.00024,2]
[340503494,1729368643298,-500.0,0.00024,2]
[340503495,1729368643307,-500.0,0.00024,2]
[340503496,1729368643316,-500.0,0.00024,2]
[340503497,1729368643326,-500.0,0.00024,2]
[340503498,1729368643335,-500.0,0.00024,2]
[340503499,1729368643346,-500.0,0.00024,2]
[340503500,1729368643357,-500.0,0.00024,2]
[340503501,1729368643367,-500.0,0.00024,2]
[340503502,1729368643377,-500.0,0.00024,2]
[340503503,1729368643387,-170.6,0.00024,2]
[340503504,1729368643396,-500.0,0.00024,2]
[340503505,1729368643405,-500.0,0.00024,2]
[340503506,1729368643415,-500.0,0.00024,2]
[340503507,1729368643425,-400.0,0.00024079,2]
[340503508,1729368643435,-400.0,0.00024079,2]
[340503509,1729368643445,-400.0,0.00024079,2]
[340503510,1729368643455,-4070.34760213,0.0002408,2]
[340503511,1729368643465,-247.01,0.0002411,2]
[340503512,1729368643474,-359.42,0.00024192,2]
[340503513,1729368643484,-359.42,0.00024192,2]
[340503514,1729368643493,-353.26,0.00024192,2]
[340503515,1729368643503,-179.80401251,0.000242,2]
[340503516,1729368643512,-150.0,0.00024225,2]
[340503517,1729368643522,-174.0,0.00024255,2]
[340503518,1729368643532,-575.45,0.00024259,2]
[340503519,1729368643541,-175.59,0.0002429,2]
[340503520,1729368643550,-175.59,0.0002429,2]
[340503521,1729368643559,-175.59,0.0002429,2]
[340503522,1729368643569,-175.59,0.0002429,2]
[340503523,1729368643578,-2500.0,0.00024299,2]
[340503524,1729368643588,-197765.31,0.000243,5]
[340503525,1729368643598,-183.720037,0.000243,7]
[340503526,1729368643607,-151.0,0.000243,7]
[340503527,1729368643616,-151.31414,0.000243,7]
[340503528,1729368643626,-175.59,0.000243,2]
[340503529,1729368643635,-175.59,0.000243,2]
[340503530,1729368643645,-175.59,0.000243,2]
[340503531,1729368643654,-175.59,0.000243,2]
[340503532,1729368643664,-175.59,0.000243,2]
[340503533,1729368643673,-175.59,0.000243,2]
[340503534,1729368643683,-2500.0,0.00024309,2]
[340503535,1729368643693,-340635.62,0.0002431,5]
[340503536,1729368643702,-151.0,0.0002431,7]
[340503537,1729368643712,-151.0,0.0002431,7]
[340503538,1729368643722,-151.0,0.0002431,7]
[340503539,1729368643733,-175.59,0.00024648,2]
[340503540,1729368643744,-750.0,0.00024657,2]
[340503541,1729368643755,-150.0,0.00024657,2]
[340503542,1729368643765,-500.0,0.00024658,7]
[340503543,1729368643775,-8594.63,0.00024658,4]
[340503544,1729368643784,-1000.0,0.000247,2]
[340503545,1729368643794,-4800.634,0.00024743,8]
[340503546,1729368643803,-168.738,0.00024743,8]
[340503547,1729368643813,-8934.78451308,0.0002475,2]
[340503548,1729368643823,-8500.0,0.00024847,2]
[340503549,1729368643832,-8500.0,0.00024856,2]
[340503550,1729368643842,-2500.0,0.00024864,2]
[340503551,1729368643852,-8500.0,0.00024865,2]
[340503552,1729368643861,-8500.0,0.00024874,2]
[340503553,1729368643871,-151.94,0.00024877,30]
[340503554,1729368643880,-175.59,0.00024881,2]
[340503555,1729368643889,-8500.0,0.00024882,2]
[340503556,1729368643899,-8500.0,0.00024891,2]
[340503557,1729368643909,-528.10644554,0.00024897,2]
[340503558,1729368643919,-969.17907772,0.00024897,2]
[340503559,1729368643929,-181.87747034,0.00024897,2]
[340503560,1729368643943,-528.10644552,0.00024899,2]
[340503561,1729368643953,-969.1790777,0.00024899,2]
[340503562,1729368643962,-8500.0,0.000249,2]
[340503563,1729368643972,-317.46,0.000249,2]
[340503564,1729368643983,-997.76,0.000249,2]
[340503565,1729368643993,-150.0,0.000249,2]
[340503566,1729368644002,-513.305105,0.000249,2]
[340503567,1729368644012,-161.89716126,0.000249,2]
[340503568,1729368644023,-528.10644552,0.000249,2]
[340503569,1729368644034,-969.1790777,0.000249,2]
[340503570,1729368644043,-9107.21924194,0.000249,2]
[340503571,1729368644052,-482.11944766,0.00024931,2]
[340503572,1729368644062,-505.79592644,0.00024931,2]
[340503573,1729368644071,-264.03274092,0.00024931,2]
[340503574,1729368644081,-275.60781026,0.00024931,2]
[340503575,1729368644090,-500.81708482,0.00024931,2]
[340503576,1729368644099,-500.0,0.00024931,2]
[340503577,1729368644109,-500.0,0.00024931,2]
[340503578,1729368644119,-500.0,0.00024931,2]
[340503579,1729368644129,-500.0,0.00024931,2]
[340503580,1729368644138,-500.0,0.00024931,2]
[340503581,1729368644148,-500.0,0.00024931,2]
[340503582,1729368644157,-500.0,0.00024931,2]
[340503583,1729368644166,-500.0,0.00024931,2]
[340503584,1729368644175,-500.0,0.00024931,2]
[340503585,1729368644184,-500.0,0.00024931,2]
[340503586,1729368644194,-500.0,0.00024931,2]
[340503587,1729368644203,-500.0,0.00024931,2]
[340503588,1729368644212,-500.0,0.00024931,2]
[340503589,1729368644222,-286.403493,0.00024931,2]
[340503590,1729368644232,-500.0,0.00024931,2]
[340503591,1729368644241,-510.44640258,0.00024931,2]
[340503592,1729368644251,-500.0,0.00024931,2]
[340503593,1729368644261,-500.0,0.00024931,2]
[340503594,1729368644270,-500.0,0.00024931,2]
[340503595,1729368644280,-500.0,0.00024931,2]
[340503596,1729368644289,-500.0,0.00024931,2]
[340503597,1729368644299,-460.79,0.00024931,2]
[340503599,1729368644308,-528.88259228,0.00024931,2]
[340503600,1729368644317,-500.0,0.00024931,2]
[340503601,1729368644327,-192.16090364,0.00024931,2]
[340503602,1729368644336,-500.0,0.00024931,2]
[340503603,1729368644345,-500.0,0.00024931,2]
[340503604,1729368644354,-493.63891796,0.00024931,2]
[340503605,1729368644363,-500.0,0.00024931,2]
[340503606,1729368644372,-500.0,0.00024931,2]
[340503607,1729368644382,-500.0,0.00024931,2]
[340503608,1729368644391,-500.0,0.00024931,2]
[340503609,1729368644401,-500.0,0.00024931,2]
[340503610,1729368644410,-500.0,0.00024931,2]
[340503611,1729368644421,-500.0,0.00024931,2]
[340503613,1729368644430,-504.77801501,0.00024931,2]
[340503615,1729368644439,-150.0,0.00024973,2]
[340503617,1729368644448,-175.59,0.00024973,2]
[340503618,1729368644458,-175.59,0.00024973,2]
[340503619,1729368644467,-175.59,0.00024973,2]
[340503620,1729368644476,-175.59,0.00024973,2]
[340503621,1729368644486,-600.0,0.00024977,9]
[340503622,1729368644495,-600.0,0.00024977,9]
[340503623,1729368644504,-600.0,0.00024977,9]
[340503624,1729368644514,-600.0,0.00024977,9]
[340503625,1729368644523,-600.0,0.00024977,9]
[340503626,1729368644540,-600.0,0.00024977,9]
[340503627,1729368644548,-600.0,0.00024977,9]
[340503628,1729368644557,-600.0,0.00024977,9]
[340503629,1729368644566,-600.0,0.00024977,9]
[340503630,1729368644575,-600.0,0.00024977,9]
[340503631,1729368644584,-175.59,0.00024978,2]
[340503632,1729368644593,-4591.0,0.00024982,2]
[340503633,1729368644602,-2500.0,0.00024982,2]
[340503634,1729368644611,-190.898706,0.00024983,7]
[340503635,1729368644620,-166.456,0.00024983,7]
[340503636,1729368644629,-151.0,0.00024983,7]
[340503637,1729368644638,-151.0,0.00024983,7]
[340503638,1729368644648,-151.0,0.00024983,7]
[340503639,1729368644657,-151.0,0.00024983,7]
[340503640,1729368644667,-151.0,0.00024983,7]
[340503641,1729368644676,-530.939408,0.00024983,7]
[340503642,1729368644686,-541.017397,0.00024983,7]
[340503643,1729368644696,-530.939408,0.00024983,7]
[340503644,1729368644705,-151.0,0.00024983,7]
[340503645,1729368644714,-1725.030784,0.00024983,2]
[340503646,1729368644723,-2217.8967223,0.00024983,2]
[340503647,1729368644733,-2710.7626606,0.00024983,2]
[340503648,1729368644743,-3203.6285989,0.00024983,2]
[340503649,1729368644753,-3696.4945372,0.00024983,2]
[340503650,1729368644762,-21446.0871477,0.00024983,2]
[340503651,1729368644771,-27573.5406185,0.00024983,2]
[340503652,1729368644782,-33700.9940893,0.00024983,2]
[340503653,1729368644791,-39828.4475601,0.00024983,2]
[340503654,1729368644802,-45955.9010308,0.00024983,2]
[340503655,1729368644813,-3153.8969717,0.00024983,2]
[340503656,1729368644823,-4055.0103922,0.00024983,2]
[340503657,1729368644831,-4956.1238127,0.00024983,2]
[340503658,1729368644841,-5857.2372332,0.00024983,2]
[340503659,1729368644851,-6758.3506537,0.00024983,2]
[340503660,1729368644861,-151.0,0.00024983,7]
[340503661,1729368644872,-151.0,0.00024983,7]
[340503662,1729368644882,-151.0,0.00024983,7]
[340503663,1729368644892,-175.59,0.00024987,2]
[340503664,1729368644902,-175.59,0.00024987,2]
[340503665,1729368644912,-175.59,0.00024987,2]
[340503666,1729368644922,-175.59,0.00024987,2]
[340503667,1729368644934,-175.59,0.00024987,2]
[340503668,1729368644944,-175.59,0.00024987,2]
[340503669,1729368644955,-175.59,0.00024987,2]
[340503670,1729368644964,-175.59,0.00024987,2]
[340503671,1729368644974,-175.59,0.00024987,2]
[340503672,1729368644984,-175.59,0.00024987,2]
[340503673,1729368644994,-175.59,0.00024987,2]
[340503674,1729368645005,-175.59,0.00024987,2]
[340503675,1729368645015,-175.59,0.00024987,2]
[340503676,1729368645026,-175.59,0.00024987,2]
[340503677,1729368645037,-175.59,0.00024987,2]
[340503678,1729368645048,-175.59,0.00024987,2]
[340503679,1729368645058,-175.59,0.00024987,2]
[340503680,1729368645069,-175.59,0.00024987,2]
[340503681,1729368645079,-175.59,0.00024987,2]
[340503682,1729368645090,-175.59,0.00024987,2]
[340503683,1729368645100,-175.59,0.00024987,2]
[340503684,1729368645110,-175.59,0.00024987,2]
[340503685,1729368645120,-175.59,0.00024987,2]
[340503686,1729368645130,-175.59,0.00024987,2]
[340503687,1729368645139,-175.59,0.00024987,2]
[340503688,1729368645149,-175.59,0.00024987,2]
[340503689,1729368645160,-175.59,0.00024987,2]
[340503690,1729368645170,-175.59,0.00024987,2]
[340503691,1729368645179,-175.59,0.00024987,2]
[340503692,1729368645189,-175.59,0.00024987,2]
[340503693,1729368645199,-175.59,0.00024987,2]
[340503694,1729368645209,-175.59,0.00024987,2]
[340503695,1729368645219,-175.59,0.00024987,2]
[340503696,1729368645229,-175.59,0.00024987,2]
[340503697,1729368645239,-175.59,0.00024987,2]
[340503698,1729368645249,-175.59,0.00024987,2]
[340503699,1729368645259,-175.59,0.00024987,2]
[340503700,1729368645268,-175.59,0.00024987,2]
[340503701,1729368645279,-175.59,0.00024987,2]
[340503702,1729368645288,-175.59,0.00024987,2]
[340503703,1729368645298,-175.59,0.00024987,2]
[340503704,1729368645308,-175.59,0.00024987,2]
[340503705,1729368645318,-175.59,0.00024987,2]
[340503706,1729368645328,-175.59,0.00024987,2]
[340503707,1729368645338,-175.59,0.00024987,2]
[340503708,1729368645348,-175.59,0.00024987,2]
[340503709,1729368645358,-175.59,0.00024987,2]
[340503710,1729368645368,-175.59,0.00024987,2]
[340503711,1729368645378,-175.59,0.00024987,2]
[340503712,1729368645392,-175.59,0.00024987,2]
[340503713,1729368645403,-175.59,0.00024987,2]
[340503714,1729368645418,-175.59,0.00024987,2]
[340503715,1729368645435,-175.59,0.00024987,2]
[340503716,1729368645445,-175.59,0.00024987,2]
[340503717,1729368645455,-175.59,0.00024987,2]
[340503718,1729368645465,-175.59,0.00024987,2]
[340503719,1729368645474,-175.59,0.00024987,2]
[340503720,1729368645484,-175.59,0.00024987,2]
[340503721,1729368645494,-175.59,0.00024987,2]
[340503722,1729368645504,-175.59,0.00024987,2]
[340503723,1729368645513,-175.59,0.00024987,2]
[340503724,1729368645523,-175.59,0.00024987,2]
[340503725,1729368645658,-175.59,0.00024987,2]
[340503726,1729368645668,-175.59,0.00024987,2]
[340503727,1729368645678,-175.59,0.00024987,2]
[340503728,1729368645687,-175.59,0.00024987,2]
[340503729,1729368645697,-35000.0,0.00024988,2]
[340503730,1729368645706,-2500.0,0.00024989,5]
[340503731,1729368645715,-500.0,0.00024996,2]
[340503732,1729368645725,-2298.22390034,0.00024997,2]
[340503733,1729368645734,-35000.0,0.00024997,2]
[340503734,1729368645743,-8500.0,0.00024997,2]
[340503735,1729368645753,-32690.53141818,0.00024997,2]
[340503736,1729368645762,-3920554.67559224,0.00024997,5]
[340503737,1729368645886,-1961.58709755,0.00024997,5]
[340503740,1729368646292,-500.0,0.00019,2]
[340503741,1729368646302,-500.0,0.0002,2]
[340503742,1729368646311,-2581.01432309,0.00024897,2]
[340503743,1729368646397,-4212.02678404,0.00024897,2]
[340503744,1729368646406,-215.45683329,0.000249,2]
[340503745,1729368646502,-929.97459285,0.000249,2]
[340503746,1729368646511,-54921.84718855,0.00024997,5]
[340503747,1729368646522,-606.13570382,0.00024997,5]
[340503748,1729368646556,-256.82269628,0.00024997,5]
[340503749,1729368646565,-151.0,0.00024997,7]
[340503750,1729368646574,-282.78234949,0.00024997,2]
[340503751,1729368646611,-2957.30508486,0.00024997,2]
[340503752,1729368663856,568.28,0.00026877,120]
[340503753,1729368717072,250.0,0.0001,2]
[340503754,1729368822327,150.0,0.00027,60]
[340503755,1729369638103,-858.24468539,0.00010859,2]
[340503756,1729369654204,-334.63979083,0.00010859,2]
[340503757,1729369654225,-162.94,0.00010959,2]
[340503758,1729369654246,-500.0,0.00010973,2]
[340503759,1729369654267,-1330.98439478,0.00010999,2]
[340503765,1729369831738,-615.11,0.000109,2]
[340503766,1729369837530,-1058.32430776,0.000109,2]
[340503767,1729369837542,-2473.18626683,0.000109,2]
[340503768,1729369837745,-382.07349683,0.000109,2]
[340503769,1729369837754,-26197.377917,0.000109,2]
[340503770,1729369837764,-15137.89191319,0.00010999,2]
[340503771,1729369837774,-500.0,0.00010999,2]
[340503772,1729369837783,-241.26850285,0.00010999,2]
[340503773,1729369837793,-500.0,0.00010999,2]
[340503774,1729369837802,-353.68668098,0.00010999,2]
[340503775,1729369837812,-500.0,0.00010999,2]
[340503776,1729369837821,-563.27116553,0.00010999,2]
[340503777,1729369837830,-499.99999999,0.00010999,2]
[340503778,1729369837840,-451737.70589636,0.00011,2]
[340503779,1729369837865,-2821.92785434,0.00011,2]
[340503780,1729369837878,-1000.0,0.00011,2]
[340503781,1729369837894,-27953.14350758,0.00011,2]
[340503782,1729369837918,-404.23910663,0.00011,2]
[340503783,1729369837930,-4207.4695537,0.00011,2]
[340503790,1729369839521,-2480.88,0.00011,2]
[340503791,1729369839534,-5195.77556904,0.00011,2]
[340503792,1729369839578,-1023.08799434,0.00011,2]
[340503793,1729369839635,-334.39,0.00011,2]
[340503794,1729369839647,-319.196952,0.00011,2]
[340503795,1729369839658,-1947.98619997,0.00011,2]
[340503796,1729369839692,-795.2994959,0.00011,2]
[340503797,1729369839703,-1637.74936166,0.00011,2]
[340503798,1729369839716,-5591.6051556,0.00011,2]
[340503799,1729369839749,-40738.66249894,0.00011,2]
[340503800,1729369839761,-3433.7363163,0.00011,2]
[340503801,1729369839772,-4617.91216045,0.00011,2]
[340503802,1729369839784,-1493.21360508,0.00011,2]
[340503803,1729369839805,-1244.09212786,0.00011,2]
[340503949,1729370108442,-3225.38502986,0.000109,2]
[340503950,1729370108465,-3019.12938094,0.000109,2]
[340503951,1729370108487,-500.0,0.00010973,2]
[340503952,1729370108513,-29498.4855892,0.00011,2]
[340503953,1729370537277,250.0,0.0001,2]
[340503970,1729370827112,-232.85641856,0.00010799,2]
[340503971,1729370844115,-263.57229834,0.00010735,2]
[340503972,1729370849082,-334.53264642,0.00010735,2]
[340503973,1729371031851,-261.15578167,0.00010635,2]
[340503974,1729371031863,-517.85068696,0.00010635,2]
[340503975,1729371031875,-779.56044237,0.00010635,2]
[340503976,1729371031885,-164.07,0.00010689,2]
[340503977,1729371031894,-150.0,0.00010735,2]
[340503978,1729371031904,-150.0,0.00010735,2]
[340503979,1729371031913,-150.0,0.00010735,2]
[340503980,1729371031923,-150.0,0.00010735,2]
[340503981,1729371031932,-150.0,0.00010735,2]
[340503982,1729371031942,-150.0,0.00010735,2]
[340503983,1729371031951,-150.0,0.00010735,2]
[340503984,1729371031960,-150.0,0.00010735,2]
[340503985,1729371031969,-150.0,0.00010735,2]
[340503986,1729371031979,-150.0,0.00010735,2]
[340503987,1729371031988,-150.0,0.00010735,2]
[340503988,1729371031998,-150.0,0.00010735,2]
[340503989,1729371032007,-150.0,0.00010735,2]
[340503990,1729371032017,-150.0,0.00010735,2]
[340503991,1729371032026,-150.0,0.00010735,2]
[340503992,1729371032036,-210.45245589,0.00010735,2]
[340503993,1729371032045,-638.13058144,0.00010799,2]
[340503994,1729371032055,-3887.61060787,0.00010898,2]
[340503995,1729371032066,-1182.37724129,0.00010898,2]
[340503996,1729371032126,-146.77333447,0.00010898,2]
[340503997,1729371032141,-2210.68138415,0.00010898,2]
[340503998,1729371032152,-734.11746341,0.00010898,2]
[340503999,1729371032165,-37444.61047178,0.00010898,2]
[340504000,1729371032174,-658.0173,0.000109,2]
[340504001,1729371032183,-2012.75292062,0.000109,2]
[340504002,1729371032193,-158.42,0.00010959,2]
[340504003,1729371032202,-150.0,0.00010986,2]
[340504004,1729371032212,-5030.33373061,0.00011,2]
[340504005,1729371032223,-1117.22136038,0.00011,2]
[340504006,1729371032234,-365.35210606,0.00011,2]
[340504008,1729371032246,-9398.26610657,0.00011,2]
[340504010,1729371032259,-127159.29191398,0.00011,2]
[340504012,1729371032270,-3569.7731183,0.00011,2]
[340504013,1729371032282,-545.44642781,0.00011,2]
[340504014,1729371032293,-435.419,0.00011,2]
[340504017,1729371038005,-526.17759152,0.00011,2]
[340504019,1729371039838,-127.43164273,0.00011,2]
[340504020,1729371039858,-1276.76636656,0.00011,2]
[340504077,1729371045779,-340.813,0.00011,2]
[340504095,1729371558621,601.73,9.911e-05,2]
[340504102,1729372069818,584.83,8.365e-05,2]
[340504103,1729372219424,166.33,0.00010308,2]
[340504104,1729372232020,-150.0,0.00010547,2]
[340504105,1729372232033,-165.07,0.00010557,2]
[340504106,1729372232077,-701.0,0.00010557,2]
[340504107,1729372232088,-133.93,0.00010557,2]
[340504108,1729372232098,-410.28038411,0.00010629,2]
[340504109,1729372232133,-174.54961589,0.00010629,2]
[340504110,1729372232142,-9344.4806801,0.00010748,2]
[340504115,1729372238049,-14555.5193199,0.00010748,2]
[340504116,1729372238059,-4409.30533973,0.00010748,2]
[340504117,1729372238069,-327.145,0.00010781,2]
[340504118,1729372238079,-250.0,0.00010835,2]
[340504119,1729372238088,-500.0,0.0001088,2]
[340504120,1729372238098,-500.0,0.0001088,2]
[340504121,1729372238108,-499.99,0.0001088,2]
[340504122,1729372238117,-689.87,0.0001088,2]
[340504123,1729372238126,-1000.0,0.00010899,2]
[340504124,1729372238136,-1910.11,0.00010899,2]
[340504125,1729372238145,-150.0,0.00010899,2]
[340504126,1729372238154,-172.93282298,0.000109,2]
[340504127,1729372238163,-4959.4253,0.000109,2]
[340504128,1729372238172,-12364.2539139,0.000109,2]
[340504129,1729372238184,-3879.2535861,0.000109,2]
[340504130,1729372238193,-1000.0,0.000109,2]
[340504131,1729372238203,-2077.0389,0.000109,2]
[340504132,1729372238212,-1000.0,0.000109,2]
[340504133,1729372238222,-2500.0,0.000109,2]
[340504134,1729372238232,-162.14876678,0.000109,2]
[340504135,1729372238241,-214.9304,0.000109,2]
[340504136,1729372238251,-55.96371413,0.000109,2]
[340504137,1729372238262,-729.17517403,0.000109,2]
[340504138,1729372238274,-475.82133345,0.000109,2]
[340504139,1729372238285,-9395.78435873,0.000109,2]
[340504144,1729372240099,-1618.86926637,0.000109,2]
[340504145,1729372240111,-12277.84948,0.000109,2]
[340504146,1729372240123,-493.7649186,0.000109,2]
[340504147,1729372240134,-397.08499999,0.000109,2]
[340504148,1729372240157,-555.54144089,0.000109,2]
[340504149,1729372240168,-11650.00291381,0.000109,2]